Cogmind - Beta 16 @@@ ROGUE MODE // 2025.10.24 @ 15:39:46 Player: nirgal Result: Destroyed by G-47 Trooper with Backup Laser I Performance ------------- Evolutions (2) 1000 Regions Visited (4) 800 Robots Destroyed (36) 180 Value Destroyed (1281) 1281 Prototype IDs (5) 100 Alien Tech Used (0) 0 Bonus (0) 0 TOTAL SCORE: 3361 Bonus ------- None Cogmind --------- Core Integrity 0/550 Matter 290/300 Energy 71/125 System Corruption 0% Temperature Warm (171) Movement Core (450) Ox8 Location -8/Materials Parts ------- > --- POWER (1) -------- Light Ion Engine > --- PROPULSION (3) --- Carbon-fiber Leg > --- UTILITY (3) ------ Small Storage Unit Medium Storage Unit > --- WEAPON (4) ------- Small Laser Beam Rifle Particle Gun > --- INVENTORY (10) --- Large Matter Pod (150) Advanced Targeting Computer ECM Suite ECM Suite Improved Power Shielding Reactive Plating Peak State ------------ > --- POWER ------------ Light Deuterium Engine > --- PROPULSION ------- Light Treads Light Treads Carbon-fiber Leg > --- UTILITY ---------- Small Storage Unit Medium Storage Unit Recoil Stabilizer > --- WEAPON ----------- Assault Rifle Assault Rifle High-powered Shotgun Grenade Launcher > --- INVENTORY -------- Light Ion Engine Aluminum Leg Aluminum Leg Large Matter Pod Advanced Targeting Computer ECM Suite ECM Suite Small Laser Particle Cannon Katana [Rating: 20] Favorites ----------- Power Ion Engine Engine Ion Engine Propulsion Light Treads Treads Light Treads Leg Aluminum Leg Utility Small Storage Unit Device Recoil Stabilizer Storage Small Storage Unit Protection Improved Light Armor Plating Weapon Assault Rifle Energy Gun Medium Laser Energy Cannon Beam Cannon Ballistic Gun Assault Rifle Launcher Grenade Launcher Slashing Weapon Katana Build | -11 -10 -9 -9 -8 ------- Run | Yrd Mat Mat Min Mat Slots Evolved 4 | . . 2 . 2 Power . | . . . . . Propulsion 1 | . . . . 1 Utility 1 | . . . . 1 Weapon 2 | . . 2 . . Parts Attached 32 | 6 2 1 . 23 Power 4 | 1 . . . 3 Engine 4 | 1 . . . 3 Core . | . . . . . Reactor . | . . . . . Propulsion 10 | 2 . . . 8 Treads 2 | 2 . . . . Leg 8 | . . . . 8 Wheel . | . . . . . Hover . | . . . . . Flight . | . . . . . Utility 5 | 1 1 . . 3 Device 2 | . . . . 2 Storage 2 | 1 1 . . . Processor . | . . . . . Hackware . | . . . . . Protection 1 | . . . . 1 Artifact . | . . . . . Weapon 13 | 2 1 1 . 9 Energy Gun 4 | . . 1 . 3 Energy Cannon 2 | . . . . 2 Ballistic Gun 3 | 2 . . . 1 Ballistic Cannon . | . . . . . Launcher 2 | . 1 . . 1 Special Weapon . | . . . . . Impact Weapon . | . . . . . Slashing Weapon 2 | . . . . 2 Piercing Weapon . | . . . . . Special Melee Weapon . | . . . . . Unidentified Prototypes . | . . . . . Parts Lost 20 | . . . . 20 Power 3 | . . . . 3 Propulsion 6 | . . . . 6 Utility 2 | . . . . 2 Weapon 9 | . . . . 9 Highest Loss Streak 4 | . . . . 4 To Critical Strikes . | . . . . . Average Backups 7 | 2 5 6 8 8 Power . | . 1 1 1 . Propulsion 1 | 1 2 2 2 . Utility 3 | . . 1 3 5 Weapon 1 | . 2 1 2 2 Tool/Special . | . . . . . Unused Backups 6 | . . 1 . 5 Power . | . . . . . Propulsion . | . . . . . Utility 6 | . . 1 . 5 Weapon . | . . . . . Tool/Special . | . . . . . Average Slot Usage (%) 84 | . 95 99 100 75 Engine 8 | . 14 11 11 5 Treads 12 | . 28 22 22 3 Leg 7 | . . . . 12 Device 2 | . . . . 4 Storage 19 | . 24 22 22 18 Protection 1 | . . . . 1 Energy Gun 3 | . . 11 11 1 Energy Cannon 1 | . . . . 2 Ballistic Gun 17 | . 21 21 22 14 Launcher 5 | . 6 11 11 3 Slashing Weapon 4 | . . . . 7 Peak Build Rating 20 | 6 7 9 9 20 Average Rating 11 | 4 6 8 9 14 On Entrance 6 | . 6 7 9 9 Avg Prop Armor Cover (%) 11 | . . . . 11 Naked Turns . | . . . . . Heaviest Build 32 | 14 25 29 29 32 Greatest Support 40 | 40 40 40 40 40 Greatest Overweight (x) 9 | 4 . . . 9 Average Overweight (x) . | 1 . . . 1 Largest Inventory Capacity 10 | 8 10 10 10 10 Average Capacity 9 | 7 9 10 10 10 Most Carried 10 | 4 6 8 8 10 Average Carried 7 | 2 5 6 8 8 Final Capacity 10 | 8 10 10 10 10 Final Carried 8 | 4 6 8 8 6 Class Distribution -------------------- 51% | Gunner 48% | Mutant Dominant Class ---------------- Mutant | -10/Materials Gunner | -9/Materials Gunner | -9/Mines Mutant | -8/Materials Resources | -11 -10 -9 -9 -8 ----------- Run | Yrd Mat Mat Min Mat Matter Collected 1125 | 159 148 143 . 675 Remotely . | . . . . . Salvage Created 1296 | . 89 . . 1207 Parts 67 | . 10 . . 57 Haulers Intercepted . | . . . . . Recyclers Shooed . | . . . . . Parts Field Recycled . | . . . . . Retrieved Matter . | . . . . . Parts Self-Destructed . | . . . . . Prevented . | . . . . . Parts Restored . | . . . . . Kills | -11 -10 -9 -9 -8 ------- Run | Yrd Mat Mat Min Mat Combat Hostiles Destroyed 31 | . 6 . . 25 Melee 11 | . . . . 11 Guns 15 | . 3 . . 12 Cannons 1 | . . . . 1 AOE 4 | . 3 . . 1 Classes Destroyed 9 | . 2 . . 7 Worker 2 | . . . . 2 Tunneler 1 | . . . . 1 Watcher 2 | . . . . 2 Swarmer 5 | . 3 . . 2 Grunt 17 | . 3 . . 14 Brawler 3 | . . . . 3 Duelist 2 | . . . . 2 Sentry 3 | . . . . 3 Hunter 1 | . . . . 1 Best Kill Streak 4 | . 4 . . 3 Combat Bots Only 4 | . 4 . . 3 Max Kills in Single Turn 3 | . 3 . . 2 Gunslinging . | . . . . . Exploded 2 | . 2 . . 1 Melee 1 | . . . . 1 Uniques/NPCs Destroyed . | . . . . . Combat | -11 -10 -9 -9 -8 -------- Run | Yrd Mat Mat Min Mat Hostile Shots Fired 235 | . 13 . . 222 Missed 49 | . 5 . . 44 Hits 186 | . 8 . . 178 Melee 2 | . . . . 2 Projectile 184 | . 8 . . 176 Critical Strikes 9 | . . . . 9 Damage Taken 2678 | . 84 . . 2594 Core 562 | . 6 . . 556 Absorbed by Shields . | . . . . . Core Remaining (%) 99 | 100 97 . 100 . Volleys Fired 62 | . 15 . . 47 Largest 4 | . 2 . . 4 Hottest 161 | . 50 . . 161 Shots Fired 145 | . 23 . . 122 Gun 131 | . 18 . . 113 Cannon 7 | . . . . 7 Launcher 7 | . 5 . . 2 Special . | . . . . . Kinetic 113 | . 18 . . 95 Thermal 25 | . . . . 25 Explosive 6 | . 5 . . 1 Electromagnetic 1 | . . . . 1 Robot Hit Streak 9 | . 5 . . 9 Robot Miss Streak 4 | . 4 . . 3 Penetration Max . | . . . . . Secondary Targets 1 | . . . . 1 Max Gunslinging Chain 1 | . . . . 1 Shots Hit Robots 126 | . 10 . . 116 Core Hits 67 | . 10 . . 57 Critical Kills . | . . . . . Critical Parts Destroyed 1 | . . . . 1 Critical Strikes 4 | . . . . 4 Burn 1 | . . . . 1 Destroy 1 | . . . . 1 Sever 2 | . . . . 2 Melee Attacks 33 | . . . . 33 Impact . | . . . . . Slashing 33 | . . . . 33 Piercing . | . . . . . Sneak Attacks 1 | . . . . 1 Combat Hostiles . | . . . . . Follow-up Attacks 1 | . . . . 1 Damage Inflicted 3014 | . 444 . . 2570 Guns 1362 | . 123 . . 1239 Cannons 104 | . . . . 104 Explosions 599 | . 321 . . 278 Melee 949 | . . . . 949 Ramming . | . . . . . Kinetic 1195 | . 123 . . 1072 Thermal 485 | . . . . 485 Explosive 321 | . 321 . . . Electromagnetic 64 | . . . . 64 Impact . | . . . . . Slashing 949 | . . . . 949 Piercing . | . . . . . Highest Corruption . | . . . . . Average Corruption . | . . . . . Corruption Purged . | . . . . . Corruption Blocked . | . . . . . Overload Shots . | . . . . . Overflow Damage 20 | . . . . 20 Projectiles . | . . . . . Explosions 20 | . . . . 20 Melee . | . . . . . Knockbacks . | . . . . . Impact . | . . . . . Kinetic . | . . . . . Secondary . | . . . . . Self-Inflicted Damage 128 | . . . . 128 Shots 3 | . . . . 3 Rammed . | . . . . . Targets Rammed . | . . . . . Kicked . | . . . . . Crushed . | . . . . . Highest Temperature 313 | . 5 . . 313 Average Temperature 56 | . 2 . . 57 Received Heat Transfer 1215 | . 45 . . 1170 Siege Activations . | . . . . . Martial Activations . | . . . . . Shielding Activations . | . . . . . Robots Disrupted . | . . . . . Combat Hostiles . | . . . . . Robots Corrupted . | . . . . . Combat Hostiles . | . . . . . Parts Fried . | . . . . . Impact Corruptions . | . . . . . Robots Melted . | . . . . . Combat Hostiles . | . . . . . Parts Melted . | . . . . . Heat Transferred 767 | . . . . 767 Parts Sabotaged . | . . . . . Parts Stolen . | . . . . . Parts Stripped . | . . . . . Power Chain Reactions . | . . . . . Alert | -11 -10 -9 -9 -8 ------- Run | Yrd Mat Mat Min Mat Maximum Alert Level 1 | . . . . 1 Low Security (%) 86 | 100 100 100 100 76 Level 1 13 | . . . . 23 Level 2 . | . . . . . Level 3 . | . . . . . Level 4 . | . . . . . Level 5 . | . . . . . High Security . | . . . . . Max Security . | . . . . . Peak Influence 273 | . 101 38 . 273 Initial 38 | . . 38 . . Average 74 | . 21 6 . 123 Influence Increases 982 | . 171 5 . 806 Destroy 0b10 Robot/C 620 | . 120 . . 500 Destroy 0b10 Robot/NC 25 | . . . . 25 Destroy Leader 164 | . 20 . . 144 Successful Hack 22 | . 10 5 . 7 Disable Machine 30 | . . . . 30 Destroy Structure 61 | . 21 . . 40 Lose Combat Pursuer 60 | . . . . 60 Influence Decreases 709 | . 80 96 . 533 Entered New Map 53 | . . 53 . . Time Decay 459 | . 80 43 . 336 Lost Part 197 | . . . . 197 Squads Dispatched 11 | . 1 . . 10 Investigation 3 | . . . . 3 Extermination . | . . . . . Reinforcement 2 | . 1 . . 1 Assault . | . . . . . Garrison 6 | . . . . 6 Intercept . | . . . . . Searches Triggered . | . . . . . Construction Impeded . | . . . . . Haulers Reinforced . | . . . . . Active Scanning Responses . | . . . . . Cargo Convoy Interrupts . | . . . . . Stealth | -11 -10 -9 -9 -8 --------- Run | Yrd Mat Mat Min Mat Distress Signals 2 | . . . . 2 Communications Jammed . | . . . . . Distress Signals . | . . . . . Times Spotted 48 | . 10 2 . 36 Peak Tracking Total 6 | . 5 2 . 6 Tactical Retreats 4 | . . . . 4 Traps | -11 -10 -9 -9 -8 ------- Run | Yrd Mat Mat Min Mat Traps Triggered 2 | . . . . 2 Indirectly . | . . . . . Trap Hack Attempts . | . . . . . Triggered . | . . . . . Disarmed . | . . . . . Reprogrammed . | . . . . . Reused . | . . . . . Traps Extracted . | . . . . . Installed . | . . . . . Triggered . | . . . . . Machines | -11 -10 -9 -9 -8 ---------- Run | Yrd Mat Mat Min Mat Machines Disabled 2 | . . . . 2 Max in Single Turn 2 | . . . . 2 Machines Repaired . | . . . . . Machines Dismantled . | . . . . . Machines Sabotaged . | . . . . . Overloaded Fab Kills . | . . . . . Hacking | -11 -10 -9 -9 -8 --------- Run | Yrd Mat Mat Min Mat Machines Accessed 8 | . 4 2 . 2 Terminals 7 | . 4 2 . 1 Fabricators . | . . . . . Repair Stations . | . . . . . Recycling Units . | . . . . . Scanalyzers 1 | . . . . 1 Garrison Access . | . . . . . Total Hacks 27 | . 11 5 . 11 Successful 18 | . 5 4 . 9 Failed 9 | . 6 1 . 2 Catastrophic 1 | . 1 . . . Database Lockouts . | . . . . . Manual 1 | . . 1 . . Terminals 19 | . 11 5 . 3 Fabricators . | . . . . . Repair Stations . | . . . . . Recycling Units . | . . . . . Scanalyzers 8 | . . . . 8 Garrison Access . | . . . . . Terminal Hacks 12 | . 5 4 . 3 Record 5 | . 2 2 . 1 Prototype ID Bank 3 | . 2 1 . . Alert Level 2 | . . 1 . 1 Zone Layout 2 | . 1 . . 1 Fabricator Hacks . | . . . . . Repair Station Hacks . | . . . . . Recycling Unit Hacks . | . . . . . Scanalyzer 6 | . . . . 6 Insert Component 1 | . . . . 1 Analyze 2 | . . . . 2 Retrieve Study 3 | . . . . 3 Garrison Access Hacks . | . . . . . Unauthorized Hacks . | . . . . . Terminals . | . . . . . Fabricators . | . . . . . Repair Stations . | . . . . . Recycling Units . | . . . . . Scanalyzers . | . . . . . Garrison Access . | . . . . . Data Cores Recovered . | . . . . . Used . | . . . . . Hacking Detections 5 | . 2 1 . 2 Full Trace Events 2 | . 1 . . 1 Feedback Events . | . . . . . Feedback Blocked . | . . . . . Robot Schematics Acquired . | . . . . . Robots Built . | . . . . . Authchips . | . . . . . Time . | . . . . . Total Robot Build Rating . | . . . . . Part Schematics Acquired 1 | . . . . 1 Parts Built . | . . . . . Authchips . | . . . . . Time . | . . . . . Total Part Build Rating . | . . . . . Part Studies Acquired 3 | . . . . 3 Parts Repaired . | . . . . . Time . | . . . . . Parts Recycled . | . . . . . Recycled Matter . | . . . . . Retrieved Matter . | . . . . . Retrieved Components . | . . . . . Parts Scanalyzed 1 | . . . . 1 Part Schematics Acquired 1 | . . . . 1 Parts Damaged . | . . . . . Bothacking | -11 -10 -9 -9 -8 ------------ Run | Yrd Mat Mat Min Mat Used RIF Installer . | . . . . . Robots Hacked . | . . . . . Non-combat . | . . . . . Combat . | . . . . . Robot Hacks Applied . | . . . . . Relay Couplers Released . | . . . . . Fabnet Peak Effective % . | . . . . . Robots Rewired . | . . . . . Allies Hacked . | . . . . . Hacks Repelled . | . . . . . Allies | -11 -10 -9 -9 -8 -------- Run | Yrd Mat Mat Min Mat Total Allies . | . . . . . Largest Group . | . . . . . Highest-Rated Group . | . . . . . Highest-Rated Ally . | . . . . . Total Orders . | . . . . . Ally Attacks . | . . . . . Total Damage . | . . . . . Kills . | . . . . . Allies Corrupted . | . . . . . Allies Melted . | . . . . . Intel | -11 -10 -9 -9 -8 ------- Run | Yrd Mat Mat Min Mat Active Infowar (turns) 31 | . . . . 31 ECM 31 | . . . . 31 Robot Analysis Total . | . . . . . Derelict Logs Recovered . | . . . . . Drone Launches . | . . . . . Drone Recoveries . | . . . . . Exploration | -11 -10 -9 -9 -8 ------------- Run | Yrd Mat Mat Min Mat Turns Passed 2007 | 96 312 330 133 1136 Spaces Moved 900 | 47 169 162 84 438 Core 91 | 23 . . . 68 Treads 563 | 24 169 162 84 124 Legs 246 | . . . . 246 Wheels . | . . . . . Hover . | . . . . . Flight . | . . . . . Fastest Speed 50 | 50 160 160 160 105 Average Speed 174 | 179 160 160 160 187 Slowest Speed 500 | 250 160 160 160 500 Overloaded Moves . | . . . . . Propulsion Burnouts . | . . . . . Robots Hopped . | . . . . . Potential Cave-ins . | . . . . . Cave-ins Triggered . | . . . . . Exploration Rate (%) 23 | 5 39 11 24 36 Regions Visited 4 Branch Regions 1 Pre-discovered Areas . | . . . . . Known Exits Taken . | . . . . . Unknown Exits Taken 4 | 1 1 1 1 . Scrap Searched . | . . . . . Spaces Dug . | . . . . . Terrain Destroyed 73 | . 28 . . 45 Melee . | . . . . . Projectile . | . . . . . AOE 73 | . 28 . . 45 Terrain Rammed . | . . . . . Walls Destroyed . | . . . . . Machines Disabled . | . . . . . Actions | -11 -10 -9 -9 -8 --------- Run | Yrd Mat Mat Min Mat Total 1160 | 56 188 233 83 600 Wait 109 | . . 64 . 45 Move 896 | 46 168 161 83 438 Hop . | . . . . . Pick Up 16 | 4 2 5 . 5 Fast Attach 23 | 6 1 . . 16 Attach 12 | . 1 2 . 9 Detach 4 | . 1 . . 3 Swap . | . . . . . Drop 6 | . . 1 . 5 Fire 62 | . 15 . . 47 Melee 32 | . . . . 32 Ram . | . . . . . Kick . | . . . . . Crush . | . . . . . Escape Stasis . | . . . . . Rewire . | . . . . . Trap . | . . . . . Miscellaneous . | . . . . . Route ------- -11/Scrapyard -10/Materials (discovered 2 exits: *Mat / [*Min]) -9/Materials -9/Mines -8/Materials History --------- Turn | Location | Event 30 | -11/Scrapyard | Discovered new exit (range 15) 97 | -11/Scrapyard | Entered Materials 305 | -10/Materials | Build established: Mutant 317 | -10/Materials | Discovered new exit (range 13) 382 | -10/Materials | Discovered new exit (range 16) 409 | -10/Materials | Entered another Materials area 409 | -9/Materials | Evolved 2 slots: Weapon x2 561 | -9/Materials | Discovered new exit (range 7) 713 | -9/Materials | Build established: Gunner 739 | -9/Materials | Entered Mines 855 | -9/Mines | Discovered new exit (range 10) 872 | -9/Mines | Entered Materials 872 | -8/Materials | Evolved 2 slots: Propulsion x1, Utility x1 1248 | -8/Materials | Garrison activated, responded to threat 1554 | -8/Materials | Lost 4 parts (2n2w) 1640 | -8/Materials | Garrison activated, responded to threat 1656 | -8/Materials | Core integrity fell below 50% 1704 | -8/Materials | Build established: Mutant 1744 | -8/Materials | Core integrity fell below 20% 1770 | -8/Materials | Lost 4 parts (2n2w) 2008 | -8/Materials | Destroyed by G-47 Trooper with Backup Laser I Last Messages --------------- 01961_ Acquired 10 matter. 01963_ K-01 Serf collects debris. 01966_ S-10 Pest suffers critical hit (Destroy). 01966_ S-10 Pest destroyed. 01966_ K-01 Serf collects debris. 01968_ Acquired Particle Gun. 01969_ Critical hit (Burn: +37). 01970_ K-01 Serf collects debris. 01974_ Acquired Beam Rifle. 01977_ K-01 Serf collects debris. 01979_ K-01 Serf suffers critical hit (Burn). 01979_ K-01 Serf destroyed. 01979_ Imp. Light Armor Plating destroyed. 01980_ Acquired 15 matter. 01982_ Critical hit (Burn: +37). 01985_ Y-45 Defender destroyed. 01985_ Switching to secondary target: G-47 Trooper. 01999_ Aluminum Leg+ destroyed. 02000_ Acquired Lgt. Ion Engine. 02002_ S-10 Pest destroyed. Map ----- +----------------------------------------------------+ | ?????????????????????????????#! ###### | | ?????????????????????????????# | | ???????????????###???????????# " | | ???????????????# ??????????# %* %% "%" | | ???????????????# """??#????### ###+#########+## | | ???????????????# """"" #??????# ##=%= #???????? | | ???????????????# """"" #??????# ## ! #???????? | | ???????????????# """"" #??????# ## #???????? | | ???????????????# """ #??????# ## #???????? | | ???????????????# #??????#%## #???????? | | ???????????????# #??????# ## #???????? | | ???????????????# #??????# #########???????? | | ???????????????####+#####??????# #???????????????? | | ??????????###+##?# ###########/##??????????????? | | ????????? # # #??????????????? | | ??????????" """ # # %!! #??????????????? | | ??????????" """ + + ""T"" !! #??????????????? | | ??????????" """ # # """"" !! #??????????????? | | ????????? # # % %% #??????????????? | | ??????????######## ##############??????????????? | | ??????????###### # #??# #?????????????????? | | ??????????# %# #??# ![!=#?????????????????? | | ??????????# """ # #??#[[%[!=#?????????????????? | | ??????????# "T" + #??#==[%!=#?????????????????? | | ??????????# %# #??#=%=g!%#?????????????????? | | ??????????# ! # #??#@%!%=!#?????????????????? | | ??????????# !!# #######+########????????????? | | ??????????######## !=[/ #??????? | | ?????????????????# [=!= #??????? | | ?????????????????# = #??????? | | ?????????????????####+################# ???????? | | ??????????????????#! #???????????????????????? | | ??????????????????# #???????????????????????? | | ??????????????????#""" = #???????????????????????? | | ??????????????????#""" #???????????????????????? | | ??????????????????#""" #???????????????????????? | | ??????????????????# #???????????????????????? | | ??????????????????########???????????????????????? | | ?????????????????????????????????????????????????? | | ?????????????????????????????????????????????????? | | ?????????????????????????????????????????????????? | | ?????????????????????????????????????????????????? | | ?????????????????????????????????????????????????? | | ?????????????????????????????????????????????????? | | ?????????????????????????????????????????????????? | | ?????????????????????????????????????????????????? | | ?????????????????????????????????????????????????? | | ?????????????????????????????????????????????????? | | ?????????????????????????????????????????????????? | | ?????????????????????????????????????????????????? | +----------------------------------------------------+ Best States ------------- Heat Dissipation 31 Energy Generation 14 Energy Capacity 250 Matter Stores 300 Matter Capacity 300 Sight Range 16 Terrain Scan Density 10 ECM Strength 1 Armor Coverage 150 Evasion (%) 55 Recoil Reduction 6 Item Schematics ----------------- Reactive Plating | -8/Materials | Scanalyzed Robot Schematics ------------------ None Fabricated ------------ Nothing Repaired ---------- Nothing Studied --------- Hpw. Shotgun | -8/Materials | Hacked Aluminum Leg | -8/Materials | Hacked Katana | -8/Materials | Hacked Alien Tech Used ----------------- None Achievements -------------- None Challenges ------------ None Game ------ Seed UltimateLargeMask Manual? 0 Play Time 00:25:08 Cumulative 13.4 hours Start 2025.10.24 @ 10:31:02 End 2025.10.24 @ 15:39:46 Sessions 3 Manual Loads 0 Difficulty Rogue Special Mode None Game No. 35 Rogue 35 Adventurer 0 Explorer 0 Win Type - Total 0 Types 0/0/0/0/0/0/0/0/0/0 Lore% 2 Gallery% 16 Achievement% 11 Wizard Run 0 Options --------- Layout 1 ASCII 0 Keyboard 1 Movement Vi Keybinds 0 Fullscreen 1 Font 32/SmallcapsGlow Map View 77x35 Zoom Use 0% Tactical HUD 1 Map Filters NONE Filters NONE Steam 1 RUN: 852e0316-9dd8-48fe-97ef-fa5ebe7cbb51